fUST/lending_fUST_20250507
["ID","MTS","AMOUNT","RATE_DAILY","PERIOD"]
[360189987,1746612646084,-1444.34,0.00013698,2]
[360189988,1746612646093,-409.60946576,0.00013698,2]
[360189989,1746612646103,-406.39877402,0.00013698,2]
[360189990,1746612646112,-400.83,0.00013698,2]
[360189991,1746612646121,-400.0,0.00013698,2]
[360189992,1746612646130,-409.4423066,0.00013698,2]
[360189993,1746612646140,-616.93,0.00013698,2]
[360189994,1746612646149,-417.97419036,0.00013698,2]
[360189995,1746612646159,-403.77342157,0.00013698,2]
[360189996,1746612646168,-400.0,0.00013698,2]
[360189997,1746612646178,-400.0,0.00013698,2]
[360189998,1746612646187,-469.54,0.00013698,2]
[360189999,1746612646196,-427.73,0.00013698,2]
[360190000,1746612646205,-400.0,0.00013698,2]
[360190001,1746612646215,-400.0,0.00013698,2]
[360190002,1746612646224,-822.83,0.00013698,2]
[360190003,1746612646234,-897.03,0.00013698,2]
[360190004,1746612646245,-400.0,0.00013698,2]
[360190005,1746612646254,-233.7296614,0.00013698,2]
[360190006,1746612646264,-400.0,0.00013698,2]
[360190007,1746612646273,-400.0,0.00013698,2]
[360190008,1746612646283,-400.0,0.00013698,2]
[360190009,1746612646293,-400.0,0.00013698,2]
[360190010,1746612646302,-400.0,0.00013698,2]
[360190011,1746612646311,-400.0,0.00013698,2]
[360190012,1746612646321,-405.58664551,0.00013698,2]
[360190013,1746612646331,-400.0,0.00013698,2]
[360190014,1746612646340,-1568.22,0.00013698,2]
[360190015,1746612646350,-412.77204886,0.00013698,2]
[360190016,1746612646359,-400.0,0.00013698,2]
[360190017,1746612646368,-1680.07,0.00013698,2]
[360190018,1746612646378,-400.0,0.00013698,2]
[360190019,1746612646388,-400.0,0.00013698,2]
[360190020,1746612646397,-404.16695587,0.00013698,2]
[360190021,1746612646407,-400.0,0.00013698,2]
[360190022,1746612646417,-400.0,0.00013698,2]
[360190023,1746612646427,-505.89227271,0.00013698,2]
[360190024,1746612646436,-400.0,0.00013698,2]
[360190025,1746612646445,-486.29790464,0.00013698,2]
[360190026,1746612646454,-400.0,0.00013698,2]
[360190027,1746612646465,-400.0,0.00013698,2]
[360190028,1746612646474,-400.0,0.00013698,2]
[360190029,1746612646483,-1584.05,0.00013698,2]
[360190030,1746612646493,-400.0,0.00013698,2]
[360190031,1746612646503,-400.0,0.00013698,2]
[360190032,1746612646512,-408.2082366,0.00013698,2]
[360190033,1746612646522,-409.82643101,0.00013698,2]
[360190034,1746612646533,-402.2992378,0.00013698,2]
[360190035,1746612646542,-400.0,0.00013698,2]
[360190036,1746612646552,-504.45307578,0.00013698,2]
[360190037,1746612646561,-551.04,0.00013698,2]
[360190038,1746612646570,-503.60542565,0.00013698,2]
[360190039,1746612646579,-400.0,0.00013698,2]
[360190040,1746612646589,-400.0,0.00013698,2]
[360190041,1746612646600,-400.0,0.00013698,2]
[360190042,1746612646610,-400.0,0.00013698,2]
[360190043,1746612646620,-471.83,0.00013698,2]
[360190044,1746612646630,-400.0,0.00013698,2]
[360190045,1746612646639,-400.0,0.00013698,2]
[360190046,1746612646649,-6543.78,0.00013698,2]
[360190047,1746612646659,-400.0,0.00013698,2]
[360190048,1746612646668,-400.0,0.00013698,2]
[360190049,1746612646678,-402.83870847,0.00013698,2]
[360190050,1746612646688,-400.0,0.00013698,2]
[360190051,1746612646698,-402.55695861,0.00013698,2]
[360190052,1746612646708,-400.0,0.00013698,2]
[360190053,1746612646718,-400.0,0.00013698,2]
[360190054,1746612646728,-400.0,0.00013698,2]
[360190055,1746612646739,-400.0,0.00013698,2]
[360190056,1746612646748,-400.0,0.00013698,2]
[360190057,1746612646758,-400.0,0.00013698,2]
[360190058,1746612646767,-400.0,0.00013698,2]
[360190059,1746612646776,-400.0,0.00013698,2]
[360190065,1746612646908,-400.0,0.00013698,2]
[360190066,1746612646921,-400.0,0.00013698,2]
[360190067,1746612646931,-400.0,0.00013698,2]
[360190068,1746612646940,-323.6719324,0.00013698,2]
[360190069,1746612646950,-400.0,0.00013698,2]
[360190070,1746612646959,-514.46,0.00013698,2]
[360190071,1746612646968,-520.19820318,0.00013698,2]
[360190072,1746612646978,-400.0,0.00013698,2]
[360190073,1746612646987,-536.59,0.00013698,2]
[360190074,1746612646997,-400.0,0.00013698,2]
[360190075,1746612647006,-400.0,0.00013698,2]
[360190076,1746612647015,-400.0,0.00013698,2]
[360190077,1746612647024,-1095.97,0.00013698,2]
[360190078,1746612647033,-400.0,0.00013698,2]
[360190079,1746612647043,-1038.8,0.00013698,2]
[360190080,1746612647052,-408.09314904,0.00013698,2]
[360190081,1746612647061,-400.0,0.00013698,2]
[360190082,1746612647071,-501.66088156,0.00013698,2]
[360190083,1746612647080,-400.0,0.00013698,2]
[360190084,1746612647089,-400.0,0.00013698,2]
[360190085,1746612647098,-400.0,0.00013698,2]
[360190086,1746612647107,-787.93,0.00013698,2]
[360190087,1746612647117,-400.0,0.00013698,2]
[360190088,1746612647127,-586.38,0.00013698,2]
[360190089,1746612647136,-401.69376006,0.00013698,2]
[360190090,1746612647146,-400.0,0.00013698,2]
[360190091,1746612647156,-400.0,0.00013698,2]
[360190092,1746612647167,-400.0,0.00013698,2]
[360190093,1746612647178,-507.91441869,0.00013698,2]
[360190094,1746612647188,-400.0,0.00013698,2]
[360190095,1746612647198,-716.56,0.00013698,2]
[360190096,1746612647209,-1254.31,0.00013698,2]
[360190097,1746612647219,-3290.61,0.00013698,2]
[360190098,1746612647229,-400.0,0.00013698,2]
[360190099,1746612647238,-408.39554805,0.00013698,2]
[360190100,1746612647248,-400.0,0.00013698,2]
[360190101,1746612647258,-504.75964231,0.00013698,2]
[360190102,1746612647267,-400.0,0.00013698,2]
[360190103,1746612647278,-408.06887972,0.00013698,2]
[360190104,1746612647287,-8964.25,0.00013698,2]
[360190105,1746612647298,-400.0,0.00013698,2]
[360190106,1746612647309,-400.0,0.00013698,2]
[360190107,1746612647320,-406.74767937,0.00013698,2]
[360190108,1746612647330,-644.26,0.00013698,2]
[360190109,1746612647340,-743.84,0.00013698,2]
[360190110,1746612647350,-427.72,0.00013698,2]
[360190111,1746612647360,-400.0,0.00013698,2]
[360190112,1746612647370,-2478.47,0.00013698,2]
[360190113,1746612647379,-402.33079682,0.00013698,2]
[360190114,1746612647388,-400.0,0.00013698,2]
[360190115,1746612647398,-400.0,0.00013698,2]
[360190116,1746612647407,-400.0,0.00013698,2]
[360190117,1746612647416,-407.87401806,0.00013698,2]
[360190118,1746612647425,-400.0,0.00013698,2]
[360190119,1746612647434,-1602.71,0.00013698,2]
[360190120,1746612647443,-400.0,0.00013698,2]
[360190121,1746612647452,-294.91236215,0.00013698,2]
[360190122,1746612647462,-404.94204184,0.00013698,2]
[360190123,1746612647471,-415.00582594,0.00013698,2]
[360190124,1746612647480,-400.0,0.00013698,2]
[360190125,1746612647489,-403.72505905,0.00013698,2]
[360190126,1746612647499,-400.0,0.00013698,2]
[360190127,1746612647508,-400.98042561,0.00013698,2]
[360190128,1746612647518,-500.0,0.00013698,2]
[360190129,1746612647528,-2983.18,0.00013698,2]
[360190130,1746612647538,-400.0,0.00013698,2]
[360190131,1746612647547,-3501.17,0.00013698,2]
[360190132,1746612647557,-400.0,0.00013698,2]
[360190133,1746612647566,-400.0,0.00013698,2]
[360190134,1746612647576,-400.0,0.00013698,2]
[360190135,1746612647585,-400.0,0.00013698,2]
[360190136,1746612647594,-402.55557749,0.00013698,2]
[360190137,1746612647603,-2398.39,0.00013698,2]
[360190138,1746612647612,-400.0,0.00013698,2]
[360190139,1746612647621,-405.90120303,0.00013698,2]
[360190140,1746612647630,-859.27,0.00013698,2]
[360190141,1746612647639,-400.0,0.00013698,2]
[360190142,1746612647648,-400.0,0.00013698,2]
[360190143,1746612647657,-400.0,0.00013698,2]
[360190144,1746612647667,-400.0,0.00013698,2]
[360190145,1746612647676,-400.0,0.00013698,2]
[360190146,1746612647688,-552.16,0.00013698,2]
[360190147,1746612647697,-400.0,0.00013698,2]
[360190148,1746612647707,-400.0,0.00013698,2]
[360190149,1746612647718,-400.0,0.00013698,2]
[360190150,1746612647727,-400.0,0.00013698,2]
[360190151,1746612647737,-400.0,0.00013698,2]
[360190152,1746612647746,-406.61079547,0.00013698,2]
[360190153,1746612647755,-400.0,0.00013698,2]
[360190154,1746612647765,-1090.5587323,0.00013698,2]
[360190155,1746612648113,-361.6212677,0.00013698,2]
[360190156,1746612648123,-400.0,0.00013698,2]
[360190157,1746612648132,-400.0,0.00013698,2]
[360190158,1746612648142,-400.0,0.00013698,2]
[360190159,1746612648151,-836.7,0.00013698,2]
[360190160,1746612648161,-400.0,0.00013698,2]
[360190161,1746612648170,-405.59115748,0.00013698,2]
[360190162,1746612648179,-480.51742561,0.00013698,2]
[360190163,1746612649957,-392.56257439,0.00013698,2]
[360190164,1746612649967,-35.13048585,0.00013698,2]
[360190222,1746613655579,1317.71,0.0002,10]
[360190229,1746613771802,160.0,0.00019907,10]
[360190230,1746613774446,160.0,0.00019724,9]
[360190231,1746613774737,160.0,0.00019541,8]
[360190232,1746613775087,160.0,0.00019358,7]
[360190233,1746613775416,160.0,0.00019175,6]
[360190289,1746613832462,-785.42130864,0.000125,2]
[360190292,1746613832472,-250.0,0.00012668,2]
[360190295,1746613832481,-300.0,0.0001327,2]
[360190298,1746613832490,-236.0,0.00013271,2]
[360190301,1746613832499,-300.0,0.00013271,2]
[360190304,1746613832509,-300.0,0.00013271,2]
[360190307,1746613832517,-1200.0,0.00013271,2]
[360190310,1746613832526,-2241.0,0.00013272,2]
[360190312,1746613832536,-708.0,0.00013272,2]
[360190314,1746613832545,-404.0,0.00013272,2]
[360190316,1746613832554,-404.0,0.00013272,2]
[360190318,1746613832563,-465.00749436,0.00013275,2]
[360190320,1746613832572,-318.22249035,0.00013597,2]
[360190322,1746613832581,-190.84564058,0.00013597,2]
[360190324,1746613832591,-180.18924178,0.00013598,2]
[360190326,1746613832600,-207.4,0.00013621,2]
[360190328,1746613832609,-5404.2090615,0.00013629,2]
[360190330,1746613832618,-1431.9396327,0.00013629,2]
[360190332,1746613832628,-180.18924176,0.00013689,2]
[360190334,1746613832637,-180.647,0.00013697,2]
[360190336,1746613832646,-400.0,0.00013698,2]
[360190338,1746613832655,-400.0,0.00013698,2]
[360190340,1746613832664,-400.0,0.00013698,2]
[360190342,1746613832673,-400.0,0.00013698,2]
[360190344,1746613832682,-449.01,0.00013698,2]
[360190346,1746613832691,-283.17738925,0.00013698,2]
[360190348,1746613832700,-400.0,0.00013698,2]
[360190350,1746613832710,-424.86989402,0.00013698,2]
[360190352,1746613832719,-503.2912177,0.00013698,2]
[360190354,1746613832728,-309.8668286,0.00013698,2]
[360190509,1746613838371,-93.84692848,0.00013698,2]
[360190510,1746613838381,-236.99645248,0.00013698,2]
[360190511,1746613838393,-163.00354752,0.00013698,2]
[360190512,1746613838402,-400.0,0.00013698,2]
[360190513,1746613838411,-411.30597903,0.00013698,2]
[360190514,1746613838420,-721.70630268,0.00013698,2]
[360190541,1746613840786,-313.60369732,0.00013698,2]
[360190543,1746613840797,-400.0,0.00013698,2]
[360190546,1746613840807,-182.97912125,0.00013698,2]
[360190548,1746613840818,-416.96545075,0.00013698,2]
[360190550,1746613840827,-400.0,0.00013698,2]
[360190552,1746613840837,-400.0,0.00013698,2]
[360190554,1746613840846,-400.0,0.00013698,2]
[360190555,1746613840856,-185.62073321,0.00013698,2]
[360190557,1746613840866,-408.98561985,0.00013698,2]
[360190559,1746613840875,-420.27973959,0.00013698,2]
[360190561,1746613840885,-400.0,0.00013698,2]
[360190563,1746613840894,-203.34573846,0.00013698,2]
[360190565,1746613840904,-409.65122204,0.00013698,2]
[360190567,1746613840913,-428.28355954,0.00013698,2]
[360190569,1746613840923,-426.74534789,0.00013698,2]
[360190571,1746613840933,-625.11,0.00013698,2]
[360190573,1746613840942,-400.0,0.00013698,2]
[360190575,1746613840952,-400.0,0.00013698,2]
[360190577,1746613840961,-410.1034353,0.00013698,2]
[360190580,1746613840971,-186.44344765,0.00013698,2]
[360190582,1746613840984,-213.55655235,0.00013698,2]
[360190584,1746613840993,-400.0,0.00013698,2]
[360190586,1746613841003,-65.11738167,0.00013698,2]
[360190854,1746613843426,-623.78261833,0.00013698,2]
[360190856,1746613843436,-521.9703808,0.00013698,2]
[360190858,1746613843445,-400.0,0.00013698,2]
[360190860,1746613843457,-516.17203249,0.00013698,2]
[360190862,1746613843466,-400.0,0.00013698,2]
[360190864,1746613843476,-400.0,0.00013698,2]
[360190866,1746613843486,-400.0,0.00013698,2]
[360190868,1746613843496,-400.0,0.00013698,2]
[360190870,1746613843506,-404.46819061,0.00013698,2]
[360190872,1746613843515,-400.0,0.00013698,2]
[360190874,1746613843525,-400.0,0.00013698,2]
[360190876,1746613843534,-400.0,0.00013698,2]
[360190878,1746613843544,-412.43402695,0.00013698,2]
[360190880,1746613843554,-407.4131592,0.00013698,2]
[360190882,1746613843563,-400.0,0.00013698,2]
[360190886,1746613843573,-400.0,0.00013698,2]
[360190888,1746613843583,-400.0,0.00013698,2]
[360190890,1746613843592,-400.0,0.00013698,2]
[360190892,1746613843601,-400.0,0.00013698,2]
[360190894,1746613843610,-419.35242935,0.00013698,2]
[360190896,1746613843620,-400.0,0.00013698,2]
[360190898,1746613843629,-400.0,0.00013698,2]
[360190900,1746613843638,-400.0,0.00013698,2]
[360190902,1746613843648,-400.0,0.00013698,2]
[360190904,1746613843658,-400.0,0.00013698,2]
[360190906,1746613843667,-400.0,0.00013698,2]
[360190908,1746613843676,-400.0,0.00013698,2]
[360190910,1746613843685,-515.72,0.00013698,2]
[360190912,1746613843695,-400.0,0.00013698,2]
[360190914,1746613843704,-400.0,0.00013698,2]
[360190916,1746613843713,-400.0,0.00013698,2]
[360190918,1746613843723,-401.5,0.00013698,2]
[360190920,1746613843732,-400.0,0.00013698,2]
[360190922,1746613843743,-499.45,0.00013698,2]
[360190924,1746613843753,-400.0,0.00013698,2]
[360190926,1746613843762,-400.0,0.00013698,2]
[360190928,1746613843772,-400.0,0.00013698,2]
[360190930,1746613843781,-400.0,0.00013698,2]
[360190932,1746613843790,-215.42454804,0.00013698,2]
[360190934,1746613843800,-735.64,0.00013698,2]
[360190936,1746613843810,-400.0,0.00013698,2]
[360190938,1746613843820,-400.0,0.00013698,2]
[360190940,1746613843830,-400.0,0.00013698,2]
[360190942,1746613843839,-400.0,0.00013698,2]
[360190944,1746613843848,-416.18728255,0.00013698,2]
[360190946,1746613843858,-406.33642134,0.00013698,2]
[360190948,1746613843867,-400.0,0.00013698,2]
[360190950,1746613843877,-400.0,0.00013698,2]
[360190952,1746613843885,-400.0,0.00013698,2]
[360190954,1746613843894,-459.28622734,0.00013698,2]
[360190955,1746613843903,-484.31,0.00013698,2]
[360190957,1746613843913,-496.66495901,0.00013698,2]
[360190959,1746613843923,-407.42396825,0.00013698,2]
[360190961,1746613843933,-400.0,0.00013698,2]
[360190963,1746613843943,-406.84228914,0.00013698,2]
[360190965,1746613843952,-409.9,0.00013698,2]
[360190967,1746613843961,-404.25313771,0.00013698,2]
[360190969,1746613843971,-409.90108543,0.00013698,2]
[360190972,1746613843981,-413.8125936,0.00013698,2]
[360190973,1746613843990,-400.0,0.00013698,2]
[360190976,1746613844000,-400.0,0.00013698,2]
[360190978,1746613844010,-400.0,0.00013698,2]
[360190980,1746613844020,-452.17,0.00013698,2]
[360190982,1746613844029,-400.0,0.00013698,2]
[360190984,1746613844039,-400.0,0.00013698,2]
[360190986,1746613844049,-400.0,0.00013698,2]
[360190988,1746613844059,-409.35987308,0.00013698,2]
[360190990,1746613844068,-400.0,0.00013698,2]
[360190992,1746613844077,-400.0,0.00013698,2]
[360190994,1746613844087,-400.0,0.00013698,2]
[360190996,1746613844096,-270.43214141,0.00013698,2]
[360190998,1746613844106,-400.0,0.00013698,2]
[360191000,1746613844115,-400.0,0.00013698,2]
[360191002,1746613844124,-400.0,0.00013698,2]
[360191004,1746613844133,-400.0,0.00013698,2]
[360191006,1746613844143,-400.0,0.00013698,2]
[360191025,1746613844313,-528.02,0.00013698,2]
[360191027,1746613844324,-400.0,0.00013698,2]
[360191029,1746613844334,-400.0,0.00013698,2]
[360191032,1746613844344,-400.0,0.00013698,2]
[360191034,1746613844353,-400.0,0.00013698,2]
[360191036,1746613844362,-202.51011658,0.00013698,2]
[360191038,1746613844372,-715.89,0.00013698,2]
[360191040,1746613844381,-400.0,0.00013698,2]
[360191042,1746613844390,-400.0,0.00013698,2]
[360191044,1746613844399,-400.0,0.00013698,2]
[360191046,1746613844408,-404.08961671,0.00013698,2]
[360191048,1746613844418,-400.0,0.00013698,2]
[360191050,1746613844427,-400.0,0.00013698,2]
[360191052,1746613844436,-442.48,0.00013698,2]
[360191053,1746613844445,-535.96,0.00013698,2]
[360191055,1746613844455,-400.0,0.00013698,2]
[360191057,1746613844464,-400.0,0.00013698,2]
[360191059,1746613844473,-10.04290208,0.00013698,2]
[360191199,1746614103006,500.0,0.00019358,7]
[360191200,1746614103331,500.0,0.00019358,7]
[360191201,1746614103646,500.0,0.00019358,7]
[360191202,1746614104006,500.0,0.00019358,7]
[360191203,1746614104330,500.0,0.00019358,7]
[360191204,1746614104644,500.0,0.00019358,7]
[360191205,1746614104979,500.0,0.00019358,7]
[360191206,1746614105771,500.0,0.00019358,7]
[360191207,1746614106098,266.0,0.00019358,7]
[360191208,1746614106875,500.0,0.00019358,7]
[360191209,1746614107269,500.0,0.00019358,7]
[360191211,1746614107587,500.0,0.00019358,7]
[360191212,1746614107890,500.0,0.00019358,7]
[360191213,1746614108778,500.0,0.00019358,7]
[360191214,1746614109104,500.0,0.00019358,7]
[360191215,1746614109487,572.05448679,0.00019358,7]
[360191219,1746614166208,669.63,0.0002,10]
[360196029,1746614995710,25521.92383821,0.0002,7]
[360196032,1746615017778,5046.323,0.0002,30]
[360196077,1746615032560,-300.0,0.00012312,2]
[360196079,1746615032570,-211.0,0.00012312,2]
[360196081,1746615032579,-300.0,0.00012312,2]
[360196083,1746615032588,-1200.0,0.00012312,2]
[360196085,1746615032597,-300.0,0.00012312,2]
[360196087,1746615032607,-494.76422566,0.00012313,2]
[360196089,1746615032616,-500.0,0.00012313,2]
[360196091,1746615032625,-500.0,0.00012313,2]
[360196093,1746615032634,-500.0,0.00012313,2]
[360196095,1746615032643,-500.0,0.00012313,2]
[360196097,1746615032653,-500.0,0.00012313,2]
[360196099,1746615032662,-500.0,0.00012313,2]
[360196100,1746615032672,-500.0,0.00012313,2]
[360196102,1746615032681,-500.0,0.00012313,2]
[360196104,1746615032691,-500.0,0.00012313,2]
[360196106,1746615032700,-500.0,0.00012313,2]
[360196108,1746615032710,-500.0,0.00012313,2]
[360196110,1746615032719,-500.0,0.00012313,2]
[360196113,1746615032729,-500.9888195,0.00012313,2]
[360196115,1746615032739,-474.64868149,0.00012313,2]
[360196117,1746615032748,-330.51652016,0.00012313,2]
[360196118,1746615032756,-14307.87565786,0.00012314,2]
[360196121,1746615032768,-26318.3275549,0.00012314,2]
[360196123,1746615032779,-1303.61683893,0.00012314,2]
[360196125,1746615032788,-24900.0,0.00012317,2]
[360196127,1746615032798,-207.4,0.00013056,2]
[360196129,1746615032807,-2032.14914838,0.00013195,2]
[360196131,1746615032817,-546.0,0.00013341,2]
[360196133,1746615032827,-708.0,0.00013341,2]
[360196135,1746615032836,-2241.0,0.00013341,2]
[360196137,1746615032845,-420.0,0.00013512,2]
[360196139,1746615032855,-180.18924176,0.00013579,2]
[360196141,1746615032864,-1145.5517061,0.00013629,2]
[360196143,1746615032873,-5000.0,0.00013629,2]
[360196145,1746615032882,-180.6472417,0.00013679,2]
[360196147,1746615032895,-400.0,0.00013698,2]
[360196149,1746615032904,-400.0,0.00013698,2]
[360196150,1746615032913,-400.0,0.00013698,2]
[360196152,1746615032922,-400.0,0.00013698,2]
[360196154,1746615032933,-510.28799783,0.00013698,2]
[360196155,1746615032942,-400.0,0.00013698,2]
[360196156,1746615032952,-400.0,0.00013698,2]
[360196157,1746615032961,-400.0,0.00013698,2]
[360196158,1746615032971,-280.60720176,0.00013698,2]
[360196159,1746615032981,-400.0,0.00013698,2]
[360196160,1746615032990,-419.92027217,0.00013698,2]
[360196161,1746615032999,-400.0,0.00013698,2]
[360196162,1746615033008,-400.0,0.00013698,2]
[360196163,1746615033018,-409.61441713,0.00013698,2]
[360196164,1746615033027,-327.99749082,0.00013698,2]
[360196165,1746615033036,-400.0,0.00013698,2]
[360196166,1746615033045,-318.33540482,0.00013698,2]
[360196167,1746615033054,-400.0,0.00013698,2]
[360196168,1746615033064,-400.0,0.00013698,2]
[360196169,1746615033073,-400.0,0.00013698,2]
[360196170,1746615033082,-400.0,0.00013698,2]
[360196171,1746615033091,-836.71,0.00013698,2]
[360196172,1746615033101,-400.0,0.00013698,2]
[360196173,1746615033110,-400.0,0.00013698,2]
[360196174,1746615033119,-521.84671677,0.00013698,2]
[360196175,1746615033128,-400.0,0.00013698,2]
[360196177,1746615033137,-400.0,0.00013698,2]
[360196194,1746615033291,-211.45368531,0.00013698,2]
[360196196,1746615033302,-400.0,0.00013698,2]
[360196198,1746615033312,-400.0,0.00013698,2]
[360196200,1746615033323,-400.0,0.00013698,2]
[360196202,1746615033332,-400.0,0.00013698,2]
[360196204,1746615033341,-412.54344005,0.00013698,2]
[360196206,1746615033351,-400.0,0.00013698,2]
[360196208,1746615033361,-400.0,0.00013698,2]
[360196210,1746615033370,-400.0,0.00013698,2]
[360196212,1746615033379,-400.0,0.00013698,2]
[360196214,1746615033388,-400.0,0.00013698,2]
[360196216,1746615033398,-400.0,0.00013698,2]
[360196218,1746615033407,-400.0,0.00013698,2]
[360196220,1746615033418,-400.0,0.00013698,2]
[360196223,1746615033427,-400.0,0.00013698,2]
[360196225,1746615033437,-410.44153472,0.00013698,2]
[360196226,1746615033447,-901.15,0.00013698,2]
[360196228,1746615033456,-400.0,0.00013698,2]
[360196230,1746615033466,-166.64808368,0.00013698,2]
[360196232,1746615033475,-952.13,0.00013698,2]
[360196234,1746615033484,-403.59219856,0.00013698,2]
[360196236,1746615033494,-400.0,0.00013698,2]
[360196238,1746615033504,-400.0,0.00013698,2]
[360196240,1746615033513,-400.0,0.00013698,2]
[360196242,1746615033522,-400.0,0.00013698,2]
[360196244,1746615033532,-400.0,0.00013698,2]
[360196247,1746615033541,-400.0,0.00013698,2]
[360196249,1746615033551,-400.0,0.00013698,2]
[360196251,1746615033560,-400.0,0.00013698,2]
[360196253,1746615033569,-208.14003644,0.00013698,2]
[360196255,1746615033578,-161.25102581,0.00013698,2]
[360196257,1746615033588,-300.0,0.00013698,2]
[360196259,1746615033598,-300.28255861,0.00013698,2]
[360196749,1746615038470,-99.71744139,0.00013698,2]
[360196751,1746615038480,-400.0,0.00013698,2]
[360196753,1746615038489,-151.0,0.00013698,2]
[360196755,1746615038498,-400.0,0.00013698,2]
[360196757,1746615038507,-400.0,0.00013698,2]
[360196759,1746615038516,-400.0,0.00013698,2]
[360196760,1746615038525,-400.0,0.00013698,2]
[360196763,1746615038535,-400.0,0.00013698,2]
[360196764,1746615038544,-400.0,0.00013698,2]
[360196766,1746615038554,-400.0,0.00013698,2]
[360196769,1746615038563,-1252.52,0.00013698,2]
[360196771,1746615038574,-320.87217403,0.00013698,2]
[360196772,1746615038584,-400.0,0.00013698,2]
[360196774,1746615038593,-400.0,0.00013698,2]
[360196776,1746615038603,-905.01,0.00013698,2]
[360196778,1746615038613,-400.0,0.00013698,2]
[360196781,1746615038622,-403.21480577,0.00013698,2]
[360196783,1746615038632,-686.06,0.00013698,2]
[360196785,1746615038641,-400.0,0.00013698,2]
[360196787,1746615038651,-400.0,0.00013698,2]
[360196789,1746615038660,-400.0,0.00013698,2]
[360196791,1746615038669,-400.0,0.00013698,2]
[360196793,1746615038679,-400.0,0.00013698,2]
[360196795,1746615038688,-400.0,0.00013698,2]
[360196796,1746615038698,-400.0,0.00013698,2]
[360196799,1746615038708,-400.0,0.00013698,2]
[360196801,1746615038717,-424.05,0.00013698,2]
[360196803,1746615038727,-400.0,0.00013698,2]
[360196805,1746615038736,-436.7007571,0.00013698,2]
[360196806,1746615038745,-400.0,0.00013698,2]
[360196808,1746615038755,-400.0,0.00013698,2]
[360196810,1746615038764,-400.0,0.00013698,2]
[360196812,1746615038773,-400.0,0.00013698,2]
[360196814,1746615038782,-400.0,0.00013698,2]
[360196816,1746615038792,-409.45604452,0.00013698,2]
[360196818,1746615038801,-400.0,0.00013698,2]
[360196820,1746615038811,-506.02,0.00013698,2]
[360196822,1746615038820,-151.397754,0.00013698,2]
[360196824,1746615038829,-400.0,0.00013698,2]
[360196826,1746615038838,-400.0,0.00013698,2]
[360196828,1746615038847,-882.42,0.00013698,2]
[360196830,1746615038856,-400.0,0.00013698,2]
[360196832,1746615038866,-400.0,0.00013698,2]
[360196834,1746615038875,-400.0,0.00013698,2]
[360196836,1746615038885,-400.0,0.00013698,2]
[360196838,1746615038897,-400.0,0.00013698,2]
[360196840,1746615038906,-400.0,0.00013698,2]
[360196842,1746615038915,-400.0,0.00013698,2]
[360196844,1746615038924,-400.0,0.00013698,2]
[360196846,1746615038935,-513.63,0.00013698,2]
[360196848,1746615038944,-745.48,0.00013698,2]
[360196850,1746615038953,-400.0,0.00013698,2]
[360196852,1746615038962,-400.0,0.00013698,2]
[360196854,1746615038971,-407.76130028,0.00013698,2]